bitfinex-derivatives/quotes_ETHF0:USTF0_20260104
["timestamp","ask_amount","ask_price","bid_price","bid_amount"]
[1767563959624,0.14424738,3145.7,3144.0,0.14054111]
[1767563959815,1.0034151,3145.6,3144.0,0.14054111]
[1767563960016,0.14424738,3145.7,3144.0,0.14054111]
[1767563960215,1.00342424,3145.6,3144.0,0.14054111]
[1767563960417,0.14424738,3145.7,3144.0,0.14054111]
[1767563960725,1.00344483,3145.6,3144.0,0.14054111]
[1767563960927,0.14424738,3145.7,3144.0,0.14054111]
[1767563961226,1.00345424,3145.6,3144.0,0.14054111]
[1767563961422,0.14424738,3145.7,3144.0,0.14054111]
[1767563961618,1.00361982,3145.6,3144.0,0.14054111]
[1767563961825,0.14424738,3145.7,3144.0,0.14054111]
[1767563962116,1.00363185,3145.6,3144.0,0.14054111]
[1767563962325,0.14424738,3145.7,3144.0,0.14054111]
[1767563962517,1.00361888,3145.6,3144.0,0.14054111]
[1767563962716,0.14424738,3145.7,3144.0,0.14054111]
[1767563962917,1.00362651,3145.6,3144.0,0.14054111]
[1767563963123,0.14424738,3145.7,3144.0,0.14054111]
[1767563963427,1.00362135,3145.6,3144.0,0.14054111]
[1767563963627,0.14424738,3145.7,3144.0,0.14054111]
[1767563963824,1.00367485,3145.6,3144.0,0.14054111]
[1767563964023,0.14424738,3145.7,3144.0,0.14054111]
[1767563964326,1.00364635,3145.6,3144.0,0.14054111]
[1767563964516,0.14424738,3145.7,3144.0,0.14054111]
[1767563964715,1.00363583,3145.6,3144.0,0.14054111]
[1767563964924,0.14424738,3145.7,3144.0,0.14054111]
[1767563965127,1.00364512,3145.6,3144.0,0.14054111]
[1767563965323,0.14424738,3145.7,3144.0,0.14054111]
[1767563965525,1.00363505,3145.6,3144.0,0.14054111]
[1767563965728,0.14424738,3145.7,3144.0,0.14054111]
[1767563965912,1.00363456,3145.6,3144.0,0.14054111]
[1767563966116,0.14424738,3145.7,3144.0,0.14054111]
[1767563966316,1.00366467,3145.6,3144.0,0.14054111]
[1767563966513,0.14424738,3145.7,3144.0,0.14054111]
[1767563966715,1.00363674,3145.6,3144.0,0.14054111]
[1767563966929,0.14424738,3145.7,3144.0,0.14054111]
[1767563967120,1.00363864,3145.6,3144.0,0.14054111]
[1767563967321,0.14424738,3145.7,3144.0,0.14054111]
[1767563967524,1.003223,3145.6,3144.0,0.14054111]
[1767563967819,0.14424738,3145.7,3144.0,0.14054111]
[1767563968016,1.00325049,3145.6,3144.0,0.14054111]
[1767563968220,0.14424738,3145.7,3144.0,0.14054111]
[1767563968429,1.00324181,3145.6,3144.0,0.14054111]
[1767563968630,0.14424738,3145.7,3144.0,0.14054111]
[1767563968928,1.00324184,3145.6,3144.0,0.14054111]
[1767563969131,0.14424738,3145.7,3144.0,0.14054111]
[1767563969331,1.00323932,3145.6,3144.0,0.14054111]
[1767563969531,0.14424738,3145.7,3144.0,0.14054111]
[1767563969736,1.00323106,3145.6,3144.0,0.14054111]
[1767563969924,0.14424738,3145.7,3144.0,0.14054111]
[1767563970127,1.00323333,3145.6,3144.0,0.14054111]
[1767563970437,0.14424738,3145.7,3144.0,0.14054111]
[1767563970628,1.00331572,3145.6,3144.0,0.14054111]
[1767563970937,0.14424738,3145.7,3144.0,0.14054111]
[1767563971132,0.13516703,3146.1,3144.1,0.13564101]
[1767563971333,1.00336943,3146.0,3144.1,0.13564101]
[1767563971526,0.13516703,3146.1,3144.1,0.13564101]
[1767563971732,1.00333984,3146.0,3144.1,0.13564101]
[1767563971936,0.13516703,3146.1,3144.1,0.13564101]
[1767563972130,1.00334247,3146.0,3144.1,0.13564101]
[1767563972328,0.13516703,3146.1,3144.1,0.13564101]
[1767563972528,1.00302185,3146.0,3144.1,0.13564101]
[1767563972836,0.13516703,3146.1,3144.1,0.13564101]
[1767563974241,0.13516703,3146.1,3144.2,0.13564101]
[1767563974442,0.13516703,3146.1,3144.3,0.13564101]
[1767563974649,0.13516703,3146.1,3144.4,0.13564101]
[1767563975644,0.00280112,3146.4,3144.7,0.14040203]
[1767563975839,0.00280112,3146.4,3145.0,0.14040203]
[1767563976040,0.00280112,3146.4,3145.1,0.14040203]
[1767563985155,0.00280112,3146.4,3145.2,0.14040203]
[1767563987553,0.00280112,3146.4,3145.3,4.879]
[1767563988850,0.00280112,3146.4,3145.3,5.01940203]
[1767563989549,0.00280112,3146.4,3145.4,0.14040203]
[1767563993457,0.00280112,3146.4,3145.4,4.08140203]
[1767563996758,0.00280112,3146.4,3145.5,0.14040203]
[1767563997463,0.00280112,3146.4,3145.5,5.01840203]
[1767563999168,0.00280112,3146.4,3145.5,0.14040203]
[1767563999469,0.00280112,3146.4,3145.6,4.878]
[1767564000465,0.00280112,3146.4,3145.5,5.01840203]
[1767564000682,0.00280112,3146.4,3145.5,4.878]
[1767564000871,6.13584602,3146.4,3145.2,4.878]
[1767564001071,0.13584602,3146.4,3144.7,0.14469357]
[1767564001275,0.13584602,3146.4,3144.8,5.02269357]
[1767564001770,0.13584602,3146.4,3144.9,0.14469357]
[1767564002070,0.13584602,3146.4,3144.9,5.02369357]
[1767564004172,0.13584602,3146.4,3144.9,0.14469357]
[1767564005473,0.1330449,3146.1,3144.5,0.14469357]
[1767564006272,0.1330449,3145.9,3144.1,0.14469357]
[1767564011381,6.1330449,3145.9,3144.1,0.14469357]
[1767564012476,0.1330449,3145.9,3144.1,0.14469357]
[1767564013875,0.15899,3146.2,3144.1,0.14469357]
[1767564014183,6.2920349,3146.2,3144.1,0.14469357]
[1767564014391,0.2920349,3146.2,3144.1,0.14469357]
[1767564015182,0.9181579,3146.0,3144.1,0.14469357]
[1767564016586,0.78508424,3145.5,3144.1,0.14469357]
[1767564024692,0.78508424,3145.2,3144.1,0.14469357]
[1767564028197,0.78508424,3144.9,3143.6,0.1469568]
[1767564028489,0.78508424,3145.2,3143.7,0.14469357]
[1767564031792,0.78508424,3145.2,3143.7,5.01469357]
[1767564032181,0.78508424,3145.2,3143.8,0.13344028]
[1767564033194,0.78508424,3145.2,3143.8,5.00444028]
[1767564035290,0.78508424,3144.6,3143.6,0.16138323]
[1767564035498,0.78508424,3144.8,3143.6,0.16138323]
[1767564036485,0.78508424,3144.8,3143.6,0.00226323]
[1767564036690,0.14080148,3145.0,3143.6,0.00226323]
[1767564036691,0.78508424,3144.5,3143.6,0.00226323]
[1767564037097,0.78508424,3144.8,3143.6,0.00226323]
[1767564038698,0.92588572,3145.0,3143.6,0.14472255]
[1767564039292,0.78508424,3144.7,3143.6,0.14472255]
[1767564039793,0.78508424,3144.7,3143.6,0.00226323]
[1767564046010,0.92588572,3145.0,3143.6,0.00226323]
[1767564047416,0.78508424,3144.7,3143.6,0.00226323]
[1767564056905,0.78508424,3144.8,3143.6,0.00226323]
[1767564061521,0.14080148,3145.0,3143.6,0.00226323]
[1767564061828,0.15904,3145.3,3143.6,0.14519731]
[1767564062016,0.14165326,3145.8,3144.4,0.78508424]
[1767564062328,1.78836782,3145.7,3144.2,0.14293408]
[1767564062620,0.78508424,3145.1,3143.7,0.15911]
[1767564062821,0.78508424,3145.1,3143.7,5.02111]
[1767564063323,0.78508424,3145.1,3143.7,5.16404408]
[1767564064314,0.78508424,3144.8,3143.8,0.14293408]
[1767564064520,0.78508424,3144.5,3143.6,0.00226323]
[1767564067627,0.14165326,3144.8,3143.6,0.00226323]
[1767564068013,0.14165326,3145.2,3143.6,0.00226323]
[1767564068218,0.14165326,3145.2,3143.8,0.78508424]
[1767564068423,0.14165326,3145.6,3144.1,0.78508424]
[1767564068623,1.0041816,3145.5,3144.1,0.78508424]
[1767564068820,0.14165326,3145.6,3144.1,0.92801832]
[1767564069916,0.78508424,3145.8,3144.2,0.14293408]
[1767564070715,0.78508424,3145.5,3144.2,0.14293408]
[1767564071115,0.78508424,3145.2,3144.0,0.1591]
[1767564072225,0.78508424,3145.2,3144.0,0.30203408]
[1767564073715,0.159,3146.1,3144.0,0.30203408]
[1767564073716,0.78508424,3145.9,3144.4,0.92801832]
[1767564073916,0.78508424,3145.6,3144.4,0.14293408]
[1767564074816,0.14165326,3146.0,3144.4,0.92801832]
[1767564075016,0.92953862,3146.4,3144.8,0.14293408]
[1767564076018,0.78508424,3146.1,3144.8,0.14293408]
[1767564078533,0.14445438,3146.4,3144.8,0.14293408]
[1767564082631,0.00280112,3146.4,3144.9,0.14293408]
[1767564082827,0.00280112,3146.4,3145.2,0.14293408]
[1767564083029,0.14445438,3146.4,3145.0,0.15905]
[1767564084243,0.92640537,3146.2,3144.7,0.14293408]
[1767564085732,0.14165326,3146.2,3144.7,0.14293408]
[1767564101569,0.00280112,3146.4,3144.7,0.14293408]
[1767564102361,0.00280112,3146.4,3144.8,0.14357853]
[1767564102664,0.00280112,3146.4,3145.0,0.30262853]
[1767564102859,0.00280112,3146.4,3145.1,0.14357853]
[1767564110264,0.00280112,3146.4,3145.2,0.14357853]
[1767564111379,0.00280112,3146.4,3145.4,0.14357853]
[1767564112268,0.00010553,3146.4,3145.4,0.14357853]
[1767564112666,0.00010553,3146.4,3145.5,0.14357853]
[1767564114567,0.14411098,3147.5,3145.6,0.14357853]
[1767564115676,0.14758761,3147.5,3145.6,0.14357853]
[1767564116382,0.00347663,3147.5,3145.6,0.14357853]
[1767564117273,0.00347663,3147.5,3145.6,0.15902]
[1767564117468,0.00347663,3147.5,3145.7,0.14357853]
[1767564117674,0.00347663,3147.5,3145.8,0.14357853]
[1767564130591,0.00347663,3147.5,3145.9,0.29543592]
[1767564130789,0.00347663,3147.5,3146.0,0.13643592]
[1767564136190,0.00347663,3147.5,3146.0,0.29543592]
[1767564136389,0.00347663,3147.5,3146.1,0.13643592]
[1767564138293,0.00347663,3147.5,3146.1,0.29542592]
[1767564138491,0.00347663,3147.5,3146.2,0.13643592]
[1767564141302,0.00347663,3147.5,3146.2,0.29542592]
[1767564142003,0.00347663,3147.5,3146.3,0.13643592]
[1767564154413,2.41140341,3148.6,3146.3,0.13643592]
[1767564154414,6.80643901,3148.6,3147.0,0.91782382]
[1767564154612,1.00348488,3148.1,3147.0,0.13382112]
[1767564154809,0.7840027,3148.3,3147.0,0.13382112]
[1767564155003,7.00351907,3148.1,3147.0,0.13382112]
[1767564155211,6.0,3148.1,3147.0,0.13382112]
[1767564155519,6.00299751,3148.1,3147.0,0.13382112]
[1767564156310,0.00299751,3148.1,3147.1,0.13382112]
[1767564159812,0.00299751,3148.1,3147.4,0.14227417]
[1767564172730,4.9740027,3148.9,3147.4,0.14227417]
[1767564173030,0.1324794,3148.8,3147.6,0.7840027]
[1767564173733,0.13594032,3148.8,3147.6,0.7840027]
[1767564178534,0.13594032,3148.8,3147.6,0.9429227]
[1767564180233,0.13594032,3148.8,3147.9,0.7840027]
[1767564180428,0.00346092,3148.8,3147.9,0.7840027]
[1767564181237,0.00346092,3148.8,3147.7,0.15891]
[1767564181536,0.00346092,3148.8,3147.8,0.7840027]
[1767564187736,0.00346092,3148.8,3148.1,0.7840027]
[1767564192845,0.13528051,3149.2,3148.1,0.7840027]
[1767564193936,0.13910223,3149.2,3148.1,0.7840027]
[1767564194137,0.13910223,3149.2,3148.0,0.1589]
[1767564194341,0.13528051,3148.8,3148.0,0.1589]
[1767564198844,0.13910223,3149.2,3148.0,0.1589]
[1767564199835,0.13528051,3149.1,3148.0,0.1589]
[1767564229759,0.00382172,3149.2,3148.4,0.15888]
[1767564229961,0.00382172,3149.2,3148.4,0.16235182]
[1767564235367,0.14072872,3149.5,3148.5,0.15887]
[1767564236366,0.14485364,3149.5,3148.5,0.15887]
[1767564236964,0.14072872,3149.9,3148.8,0.15886]
[1767564238061,0.14332373,3149.9,3148.8,0.15886]
[1767564253275,0.14332373,3149.9,3148.9,0.15885]
[1767564258180,0.14332373,3149.9,3149.0,0.15885]
[1767564262685,0.76451302,3150.6,3148.5,4.14947827]
[1767564262686,0.13065177,3150.3,3149.4,0.15883]
[1767564263772,0.13437216,3150.3,3149.4,0.15883]
[1767564264775,0.13065177,3150.2,3149.4,0.15883]
[1767564265171,0.13065177,3150.2,3149.4,0.9415119]
[1767564265785,0.00372039,3150.3,3149.4,0.15883]
[1767564265786,0.7826819,3150.1,3149.4,0.15883]
[1767564266082,0.13065177,3150.0,3149.4,0.15883]
[1767564266271,0.13065177,3150.0,3148.7,0.15886]
[1767564266881,0.13065177,3149.7,3148.7,0.15886]
[1767564267192,0.13065177,3149.4,3148.4,0.00347182]
[1767564270487,0.13209073,3149.1,3148.4,0.00347182]
[1767564270691,0.13209073,3149.1,3148.0,0.1589]
[1767564271377,0.13209073,3148.8,3148.0,0.1589]
[1767564271780,0.13209073,3148.8,3148.0,0.16135172]
[1767564273285,0.13209073,3148.8,3148.1,0.7826819]
[1767564273678,0.13209073,3149.7,3148.4,0.7826819]
[1767564275392,0.13209073,3149.7,3148.7,0.7826819]
[1767564276486,0.13305738,3150.2,3148.7,0.7826819]
[1767564277083,0.13305738,3150.2,3148.0,0.00245172]
[1767564277084,0.13305738,3150.2,3149.0,0.7826819]
[1767564277286,0.13305738,3150.2,3149.3,0.7826819]
[1767564277588,0.13305738,3150.6,3149.6,0.7826819]
[1767564278086,0.13305738,3150.6,3149.3,0.7826819]
[1767564278388,2.82388784,3152.6,3149.3,0.7826819]
[1767564278389,0.13305738,3151.0,3149.7,0.15881]
[1767564278783,0.13305738,3150.7,3149.7,0.15881]
[1767564279389,0.13716646,3150.7,3149.7,0.15881]
[1767564282295,0.13305738,3150.6,3149.0,0.15885]
[1767564282798,0.13305738,3150.6,3148.8,0.02311497]
[1767564283095,0.13305738,3150.6,3148.9,4.0939624]
[1767564284395,0.13305738,3150.6,3149.2,0.15884]
[1767564285001,0.13305738,3150.6,3149.3,0.15883]
[1767564288498,0.13305738,3150.6,3149.4,0.15883]
[1767564288694,0.13305738,3150.6,3149.5,0.15882]
[1767564288900,0.00410908,3150.7,3149.6,0.15882]
[1767564291693,0.00410908,3150.7,3149.7,0.15881]
[1767564294309,0.00410908,3150.7,3149.8,0.15881]
[1767564295308,0.00410908,3150.7,3149.9,0.1588]
[1767564301899,0.13472591,3150.7,3149.9,0.1588]
[1767564302509,0.68102396,3150.3,3149.9,0.1588]
[1767564303210,0.16489091,3150.3,3149.9,0.1588]
[1767564304214,0.13472591,3150.7,3149.9,0.1588]
[1767564305314,0.00410908,3150.7,3149.9,0.1588]
[1767564315930,0.13061683,3151.8,3150.3,0.78214688]
[1767564316123,0.13061683,3151.6,3150.3,0.78214688]
[1767564316324,0.13061683,3151.4,3150.3,0.78214688]
[1767564317024,0.13423415,3151.4,3150.3,0.78624268]
[1767564317932,0.13423415,3151.4,3150.5,0.15877]
[1767564333734,0.13423415,3151.4,3150.6,0.15876]
[1767564339541,0.1397394,3151.8,3150.7,0.15876]
[1767564341844,0.1397394,3151.8,3150.8,0.15876]
[1767564344048,0.1397394,3151.7,3150.8,0.15876]
[1767564348453,0.1397394,3151.6,3150.3,0.0040958]
[1767564349455,0.1397394,3151.6,3150.8,0.15876]
[1767564350867,0.1397394,3151.6,3150.3,0.0040958]
[1767564351066,0.1397394,3151.6,3150.3,0.1628758]
[1767564355966,0.1397394,3151.6,3150.4,0.15878]
[1767564356567,0.1397394,3151.5,3150.4,0.15878]
[1767564361868,0.13057989,3151.4,3150.4,0.15878]
[1767564364672,0.13057989,3151.4,3150.3,0.0040958]
[1767564364978,0.13057989,3151.4,2951.1,0.5]
[1767564364979,0.13057989,3151.3,3149.8,0.15881]
[1767564365776,0.13292476,3151.3,3149.8,0.16105425]
[1767564367269,0.13292476,3151.3,3149.8,0.00224425]
[1767564370079,6.13292476,3151.3,3149.8,0.00224425]
[1767564370380,0.13057989,3150.2,3148.9,0.15885]
[1767564371180,0.13057989,3150.2,3148.9,0.16163163]
[1767564372770,0.13057989,3150.2,3148.9,0.00278163]
[1767564372982,0.13057989,3150.1,3148.9,0.00278163]
[1767564380491,0.13057989,3150.0,3147.5,0.94085382]
[1767564380882,0.13057989,3150.0,3147.7,4.06132254]
[1767564381187,0.13057989,3150.0,3147.6,0.15891]
[1767564381392,0.13057989,3150.0,3147.7,0.15891]
[1767564381593,0.13057989,3150.0,3147.8,4.10441578]
[1767564381793,0.13057989,3150.0,3147.7,4.26332578]
[1767564382088,0.13057989,3150.0,3147.7,0.15891]
[1767564382284,0.13057989,3150.0,3147.8,4.21207531]
[1767564385894,0.13057989,3149.8,3147.7,0.15891]
[1767564386493,0.13057989,3149.3,3147.8,0.78319051]
[1767564391594,0.13057989,3149.3,3147.8,6.78319051]
[1767564394199,0.13057989,3149.3,3147.8,6.94210051]
[1767564395199,0.13057989,3149.3,3147.8,0.94210051]
[1767564400000,0.13471492,3149.1,3147.8,0.15891]
[1767564401100,0.91790543,3148.9,3147.8,0.15891]
[1767564401301,0.13830076,3148.9,3147.8,0.15891]
[1767564406305,0.91790543,3148.4,3147.6,0.00233295]
[1767564406507,0.13471492,3148.3,3147.6,0.00233295]
[1767564406906,0.13471492,3148.1,3147.2,0.15894]
[1767564407308,0.13471492,3148.1,3146.5,0.94216051]
[1767564407612,0.13471492,3147.9,3146.5,0.15897]
[1767564407799,0.13471492,3147.9,3146.5,0.16291855]
[1767564407996,0.13471492,3147.6,3146.5,0.16291855]
[1767564408397,0.15887,3148.6,3146.7,0.78319051]
[1767564408398,0.13471492,3148.5,3146.7,0.78319051]
[1767564408710,0.13471492,3148.3,3146.7,0.78319051]
[1767564408905,0.13471492,3148.1,3146.7,0.78319051]
[1767564411304,0.13471492,3148.1,3146.5,0.16291855]
[1767564411512,0.13471492,3148.1,3146.7,0.78319051]
[1767564419713,4.18,3148.0,3146.7,0.78319051]
[1767564420113,4.31126184,3148.0,3146.7,0.78319051]
[1767564420718,4.31126184,3148.0,3147.0,0.78319051]
[1767564420719,0.13126184,3148.0,3147.0,0.78319051]
[1767564420917,4.18,3148.1,3147.0,0.78319051]
[1767564421417,4.32495656,3148.1,3146.7,0.15896]
[1767564421612,0.14495656,3148.0,3146.7,0.15896]
[1767564422422,0.14495656,3148.0,3146.8,0.94215051]
[1767564426114,0.14495656,3148.0,3146.8,0.15896]
[1767564428316,4.32495656,3148.0,3146.8,0.15896]
[1767564431922,0.14495656,3147.9,3146.8,0.15896]
[1767564433120,0.14495656,3147.9,3146.9,0.15895]
[1767564435425,0.14495656,3147.9,3147.0,0.78319051]
[1767564448644,0.14495656,3147.9,3146.9,0.15895]
[1767564449842,4.187,3147.8,3146.9,0.15895]
[1767564451644,0.14495656,3147.9,3147.0,0.15894]
[1767564451843,0.13328434,3148.3,3146.5,6.00394855]
[1767564452048,2.95828434,3148.2,3146.6,4.08849787]
[1767564452350,0.13328434,3148.1,3146.6,4.08849787]
[1767564453452,4.187,3148.0,3147.1,0.15894]
[1767564462258,4.32652407,3148.0,3147.1,0.15894]
[1767564465759,0.13952407,3148.0,3147.2,0.15893]
[1767564466065,0.13952407,3148.4,3147.2,0.15893]
[1767564466266,3.56752407,3148.3,3147.2,0.15893]
[1767564466466,0.13952407,3148.2,3147.2,0.15893]
[1767564467167,0.13952407,3148.2,3147.3,0.15893]
[1767564478578,0.14117862,3148.1,3147.3,0.15893]
[1767564479973,0.00358584,3148.9,3146.9,0.14186447]
[1767564480177,5.18988945,3148.8,3147.6,0.15892]
[1767564480378,4.188,3148.8,3147.6,0.15892]
[1767564480881,0.00358584,3148.9,3147.6,0.15892]
[1767564481070,0.00358584,3148.9,3147.3,0.78368077]
[1767564481271,4.189,3148.8,3147.3,0.78368077]
[1767564481471,4.189,3148.8,3147.9,0.1589]
[1767564481672,0.00358584,3148.9,3148.0,0.1589]
[1767564492678,0.00358584,3148.9,3148.2,0.15889]
[1767564492889,0.13710493,3149.5,3148.3,0.15888]
[1767564493193,0.13710493,3149.5,3148.0,0.78368077]
[1767564493194,0.54461144,3150.4,3148.5,0.15887]
[1767564493384,0.13710493,3150.2,3148.5,0.78368077]
[1767564493587,4.189,3150.1,3148.8,0.15886]
[1767564493790,4.19264149,3150.1,3148.8,0.16181019]
[1767564494493,0.14074642,3150.1,3148.9,0.15885]
[1767564494691,0.00364149,3150.1,3149.1,0.15884]
[1767564495083,0.14074642,3150.1,3149.1,0.15884]
[1767564495889,0.00364149,3150.1,3149.2,0.15884]
[1767564496186,0.00364149,3150.1,3148.9,0.92616022]
[1767564496886,0.00364149,3150.1,3148.8,0.00295019]
[1767564497085,0.00364149,3150.1,3149.3,0.15883]
[1767564499187,0.14074642,3150.1,3148.8,0.00295019]
[1767564502098,0.14074642,3150.1,3148.8,0.16181019]
[1767564508399,0.14074642,3150.1,3148.9,0.15885]
[1767564516002,0.14074642,3150.1,3149.0,0.15885]
[1767564517108,0.00364149,3150.1,3149.1,0.94157868]
[1767564519801,0.00364149,3150.1,3149.1,0.78273868]
[1767564520003,0.13087681,3150.5,3149.4,0.78273868]
[1767564521001,0.13480497,3150.5,3149.4,0.78273868]
[1767564521302,0.13480497,3150.5,3149.4,0.94155868]
[1767564521606,0.13480497,3150.5,3149.4,0.15882]
[1767564529501,0.13087681,3150.4,3149.4,0.15882]
[1767564529705,0.13087681,3150.1,3148.8,0.00295019]
[1767564530614,0.13087681,3150.1,3148.8,0.78568887]
[1767564530815,0.13087681,3150.1,3148.9,0.15885]
[1767564538620,0.13087681,3150.1,3149.0,0.78273868]
[1767564554732,0.13087681,3150.1,3148.9,0.15885]
[1767564554930,0.13087681,3150.1,3149.0,0.78273868]
[1767564558138,0.13087681,3150.1,3149.0,0.94158868]
[1767564559640,0.00392816,3150.5,3149.0,0.94158868]
[1767564559835,5.18386369,3150.4,3149.0,0.94158868]
[1767564560035,4.184,3150.4,3149.0,0.94158868]
[1767564560648,4.31800834,3150.4,3149.0,0.94158868]
[1767564563345,0.13400834,3150.3,3149.0,0.94158868]
[1767564563649,0.13400834,3150.2,3149.0,0.15885]
[1767564568857,0.13400834,3150.2,3149.0,0.94158868]
[1767564570560,0.13400834,3150.2,3149.0,0.15885]
[1767564578465,0.00392816,3150.5,3149.0,0.15885]
[1767564578772,5.18378147,3150.4,3149.0,0.15885]
[1767564579069,4.183,3150.4,3149.0,0.15885]
[1767564579269,4.3154793,3150.4,3149.0,0.15885]
[1767564582173,0.1324793,3150.3,3149.0,0.15885]
[1767564593574,0.1324793,3150.3,3149.1,0.15884]
[1767564602084,0.1324793,3150.3,3149.2,0.15883]
[1767564621712,6.1324793,3150.3,3148.8,0.00295019]
[1767564621907,0.13547882,3150.1,3148.8,0.00295019]
[1767564626121,0.99951402,3150.0,3148.8,0.00295019]
[1767564626327,0.13547882,3149.9,3148.8,0.00295019]
[1767564643934,4.204,3149.8,3148.8,0.00295019]
[1767564644430,4.34817052,3149.8,3148.8,0.00295019]
[1767564646240,0.14417052,3149.7,3148.8,0.00295019]
[1767564671555,4.222,3149.6,3148.8,0.00295019]
[1767564672750,4.35753279,3149.6,3148.8,0.00295019]
[1767564676469,0.13553279,3149.5,3148.6,0.15887]
[1767564676965,0.13553279,3149.5,3148.7,0.78296005]
[1767564677263,0.13553279,3149.5,3148.6,0.15887]
[1767564677559,0.13553279,3149.5,3148.6,0.16130352]
[1767564689578,4.222,3149.6,3148.6,0.16130352]
[1767564689782,4.222,3149.6,3148.6,0.94426357]
[1767564690778,4.36137085,3149.6,3148.6,0.94426357]
[1767564691878,4.231,3149.5,3148.6,0.94426357]
[1767564692479,4.231,3149.5,3148.6,0.16130352]
[1767564693680,4.37037085,3149.5,3148.6,0.16130352]
[1767564695479,0.13937085,3149.4,3148.6,0.16130352]
[1767564695778,0.00176872,3149.4,3148.6,0.16130352]
[1767564697382,0.00176872,3149.4,3148.6,0.00243352]
[1767564704485,4.231,3149.5,3148.6,0.00243352]
[1767564715900,0.139611,3149.4,3148.6,0.00243352]
[1767564716598,4.231,3149.5,3148.6,0.00243352]
[1767564721998,4.36753072,3149.5,3148.2,0.15889]
[1767564723102,4.36753072,3149.5,3148.2,0.16178049]
[1767564729911,4.235,3149.7,3148.5,0.14205321]
[1767564730111,4.235,3149.8,3148.5,0.14205321]
[1767564733004,4.235,3149.8,3148.3,0.15888]
[1767564735913,4.235,3149.7,3148.3,0.15888]
[1767564754537,4.235,3149.7,3148.3,0.94187476]
[1767564756230,4.36985704,3149.7,3148.3,0.94187476]
[1767564760033,4.36985704,3149.7,3148.3,0.15888]
[1767564760239,0.9178518,3149.6,3148.3,0.15888]
[1767564767248,0.13485704,3149.6,3148.3,0.15888]
[1767564780152,0.78299476,3149.9,3148.3,0.15888]
[1767564780452,1.78223298,3149.8,3148.3,0.15888]
[1767564780748,0.99923822,3149.7,3148.3,0.15888]
[1767564780955,0.92772263,3149.5,3148.2,0.00289049]
[1767564781255,0.14472787,3149.5,3148.2,0.00289049]
[1767564781453,0.78299476,3149.0,3147.6,5.72407762]
[1767564781640,0.92772263,3148.7,3147.3,0.13783873]
[1767564781845,0.78299476,3148.4,3146.9,6.02086635]
[1767564782047,0.78299476,3148.1,3146.9,0.13783873]
[1767564782342,0.78299476,3147.8,3146.4,0.13783873]
[1767564782646,0.14472787,3147.4,3145.6,0.13783873]
[1767564782854,0.78299476,3146.6,3145.6,0.13783873]
[1767564783153,0.92772263,3146.6,3145.1,0.13783873]
[1767564783355,0.92772263,3146.6,3144.7,0.92083349]
[1767564783554,0.14472787,3146.5,3144.8,0.13783873]
[1767564783754,0.14472787,3146.5,3144.8,0.14155581]
[1767564784356,0.78299476,3146.3,3144.8,0.14155581]
[1767564784559,2.824,3146.8,3145.9,0.78299476]
[1767564784760,0.14472787,3146.5,3144.9,0.92083349]
[1767564785863,0.14472787,3146.5,3144.9,0.13783873]
[1767564786156,0.14472787,3146.5,3145.0,0.92083349]
[1767564786353,0.14472787,3146.9,3145.6,0.78299476]
[1767564786555,0.78299476,3146.6,3145.3,0.13783873]
[1767564786757,0.78299476,3146.0,3144.9,0.13783873]
[1767564787144,0.14472787,3146.5,3144.9,0.13783873]
[1767564787357,0.78299476,3146.3,3144.9,0.13783873]
[1767564788252,0.78299476,3146.0,3144.8,0.00371708]
[1767564788457,0.78299476,3145.7,3144.8,0.00371708]
[1767564788655,0.78299476,3146.0,3144.8,0.00371708]
[1767564789548,0.14472787,3146.2,3144.8,0.00371708]
[1767564789748,0.78299476,3146.0,3144.8,0.00371708]
[1767564792660,0.78299476,3145.4,3143.8,0.78299476]
[1767564792858,0.78299476,3145.1,3143.7,0.13783873]
[1767564793259,0.78299476,3145.4,3143.7,0.13783873]
[1767564793557,0.78299476,3145.4,3143.8,0.92083349]
[1767564793761,0.7854659,3145.4,3143.9,0.13783873]
[1767564793961,0.00247114,3145.4,3144.7,0.78299476]
[1767564794257,0.00247114,3145.4,3144.0,0.13783873]
[1767564794258,0.78299476,3145.1,3144.0,0.13783873]
[1767564794660,0.78299476,3145.1,3143.3,0.78299476]
[1767564794661,0.78299476,3145.1,3143.6,0.13783873]
[1767564795461,0.78299476,3145.1,3143.6,0.92083349]
[1767564795859,0.14719901,3145.4,3143.9,0.78299476]
[1767564796164,0.00247114,3145.4,3143.9,0.92083349]
[1767564796554,0.78299476,3145.3,3143.9,0.13783873]
[1767564798768,0.78299476,3145.3,3143.5,0.92083349]
[1767564799475,0.78299476,3145.0,3143.5,0.92083349]
[1767564800482,0.78299476,3145.0,3143.5,0.13783873]
[1767564800779,0.78299476,3145.0,3143.0,0.0553513]
[1767564800780,0.78299476,3144.4,3143.0,0.13783873]
[1767564801873,0.78299476,3144.4,3143.0,0.14143227]
[1767564802283,0.78299476,3144.1,3143.0,0.00359354]
[1767564804183,0.2809,3144.3,3141.6,6.10899476]
[1767564804184,0.78299476,3143.5,3142.2,0.13783873]
[1767564804583,0.78299476,3143.2,3141.8,0.29704873]
[1767564804778,1.00398417,3143.1,3141.8,0.29704873]
[1767564804979,1.00394907,3143.0,3141.8,0.13783873]
[1767564805176,1.00466897,3142.9,3141.8,0.14078832]
[1767564805483,0.00387438,3143.0,3142.0,0.78299476]
[1767564805686,1.00412308,3142.9,3141.8,0.14078832]
[1767564805876,1.00412308,3142.8,3141.8,0.14078832]
[1767564806076,1.00501736,3142.7,3141.8,0.14078832]
[1767564806279,0.00387438,3143.0,3141.8,0.14078832]
[1767564806473,1.00454998,3142.9,3141.8,0.14078832]
[1767564806676,1.00454998,3142.8,3141.8,0.14078832]
[1767564806988,1.00454998,3142.7,3141.8,0.00294959]
[1767564807178,1.00454998,3142.6,3141.8,0.00294959]
[1767564807376,0.78299476,3142.9,3141.4,0.13783873]
[1767564807377,1.00454998,3142.5,3141.4,0.13783873]
[1767564807671,1.00454998,3142.4,3141.4,0.13783873]
[1767564807874,1.00454998,3142.3,3141.4,0.13783873]
[1767564808077,1.00454998,3142.2,3141.4,0.13783873]
[1767564808286,1.00454998,3142.1,3141.4,0.00286909]
[1767564808489,1.70415473,3141.9,3140.6,0.13783873]
[1767564808787,4.238,3142.3,3140.6,0.13783873]
[1767564808788,2.70870471,3141.8,3140.6,0.13783873]
[1767564809087,2.70870471,3141.8,3139.5,3.182]
[1767564809088,1.70415473,3141.5,3140.2,0.13783873]
[1767564809293,1.00454998,3141.4,3140.2,0.13783873]
[1767564809478,2.70870471,3141.3,3140.3,1.56806571]
[1767564809678,1.00454998,3141.2,3140.3,1.56806571]
[1767564809984,1.70415473,3141.0,3139.9,0.13783873]
[1767564810288,1.70415473,3140.6,3139.4,0.13783873]
[1767564810475,2.2722063,3141.0,3138.6,3.182]
[1767564810476,1.70415473,3139.8,3138.6,0.05542681]
[1767564810676,1.00454998,3139.7,3138.7,0.13673184]